bitfinex/quotes_SOLUSD_20240818
["timestamp","ask_amount","ask_price","bid_price","bid_amount"]
[1723989173692,47.22025833,145.56,145.46,20.0]
[1723989173901,47.22025833,145.56,145.45,20.0]
[1723989174689,47.22025833,145.56,145.47,27.62]
[1723989174991,47.09476833,145.56,145.47,27.62]
[1723989175393,1.96927833,145.56,145.47,27.62]
[1723989175608,0.12549,145.56,145.48,20.0]
[1723989175796,1.19171406,145.58,145.49,27.62]
[1723989176002,6.3372,145.61,145.51,0.12549]
[1723989176319,6.3372,145.61,145.51,65.50196]
[1723989176520,6.3372,145.61,145.52,0.12549]
[1723989176821,6.3372,145.61,145.52,45.37647]
[1723989177013,6.3372,145.61,145.53,20.0]
[1723989177186,6.3372,145.61,145.53,47.62]
[1723989177383,16.25485782,145.63,145.55,27.62]
[1723989177587,1.71703472,145.62,145.56,20.0]
[1723989177800,16.25485782,145.63,145.56,20.0]
[1723989179403,0.12549,145.62,145.56,20.0]
[1723989179593,6.1674,145.64,145.56,20.0]
[1723989180107,1.71680706,145.66,145.57,27.74549]
[1723989180294,17.04820706,145.67,145.59,0.12549]
[1723989180492,15.3314,145.67,145.59,27.74549]
[1723989180914,6.1674,145.68,145.59,27.74549]
[1723989181120,6.1674,145.68,145.6,0.12549]
[1723989181294,15.3314,145.71,145.61,0.12549]
[1723989181499,1.71606925,145.7,145.61,27.62]
[1723989181795,1.71606925,145.7,145.54,259.8]
[1723989181796,1.71624235,145.7,145.54,259.8]
[1723989181996,27.62,145.69,145.54,259.8]
[1723989182214,1.71689031,145.68,145.55,20.0]
[1723989182414,27.62,145.69,145.55,20.0]
[1723989182615,34.484,145.69,145.55,47.62]
[1723989182920,1.96783294,145.68,145.55,47.62]
[1723989183094,0.12549,145.66,145.55,47.62]
[1723989183294,2.09339528,145.66,145.55,47.62]
[1723989183525,0.12549,145.65,145.55,47.62]
[1723989183719,0.37647,145.65,145.55,47.62]
[1723989184113,6.29289,145.64,145.55,47.62]
[1723989184308,1.84259954,145.63,145.55,20.0]
[1723989184639,1.84259954,145.63,145.54,20.0]
[1723989184824,0.12549,145.62,145.53,27.62]
[1723989185041,1.84275119,145.62,145.53,27.62]
[1723989185533,1.84275119,145.62,145.49,6.6364]
[1723989185534,15.45689,145.61,145.51,33.91289]
[1723989185713,1.96850106,145.6,145.49,34.2564]
[1723989185912,1.96850106,145.6,145.48,15.2218]
[1723989186114,0.25098,145.6,145.48,15.2218]
[1723989186329,1.96852868,145.6,145.48,15.2218]
[1723989186532,0.25098,145.6,145.48,15.2218]
[1723989186704,1.96852901,145.6,145.48,15.2218]
[1723989187220,1.96852901,145.6,145.49,20.0]
[1723989187420,1.96852901,145.6,145.5,27.62]
[1723989187747,15.3314,145.61,145.52,27.62]
[1723989188310,51.41838,145.6,145.47,7.14967537]
[1723989188631,0.12549,145.59,145.47,7.14967537]
[1723989188818,0.12549,145.59,145.43,6.6364]
[1723989189023,0.12549,145.59,145.47,27.62]
[1723989189232,1.71791895,145.58,145.47,27.62]
[1723989189425,1.96894218,145.57,145.47,27.62]
[1723989189631,0.12549,145.57,145.47,27.62]
[1723989189813,0.25098,145.57,145.47,27.62]
[1723989190012,0.12549,145.56,145.47,27.62]
[1723989191644,0.25098,145.57,145.47,27.62]
[1723989192423,7.1516488,145.59,145.49,27.62]
[1723989192846,6.1674,145.6,145.49,27.62]
[1723989193148,7.88499753,145.6,145.49,27.62]
[1723989194525,0.12549,145.59,145.49,27.62]
[1723989196528,0.25098,145.59,145.47,27.62]
[1723989196724,0.25098,145.58,145.48,20.0]
[1723989196951,0.12549,145.57,145.48,20.0]
[1723989197454,1.84339861,145.57,145.48,20.0]
[1723989197624,1.84339861,145.57,145.47,27.62]
[1723989197824,1.84339861,145.57,145.45,27.62]
[1723989198021,0.37647,145.56,145.45,27.62]
[1723989198266,0.12549,145.55,145.45,27.62]
[1723989200060,0.12549,145.58,145.45,27.62]
[1723989200349,0.37647,145.58,145.46,20.0]
[1723989200523,1.96895585,145.58,145.46,0.12549]
[1723989200725,42.3733094,145.6,145.46,45.37647]
[1723989200926,1.71779324,145.58,145.48,27.62]
[1723989201124,6.1674,145.6,145.5,27.62]
[1723989202042,1.7176005,145.59,145.5,27.62]
[1723989202571,1.7176005,145.59,145.48,27.62]
[1723989202748,0.12549,145.58,145.48,27.62]
[1723989203126,0.25098,145.58,145.48,27.62]
[1723989203461,1.96882903,145.58,145.48,27.62]
[1723989203644,15.6845,145.56,145.45,7.15104171]
[1723989203879,6.2177,145.54,145.44,27.62]
[1723989204154,1.71813647,145.53,145.44,27.62]
[1723989205353,1.71813647,145.53,145.45,20.0]
[1723989205925,6.2177,145.54,145.46,27.62]
[1723989207073,6.2177,145.54,145.46,0.12549]
[1723989207253,6.2177,145.54,145.47,27.62]
[1723989211153,1.71802471,145.53,145.47,27.62]
[1723989211461,6.2177,145.54,145.47,27.62]
[1723989213150,15.6845,145.56,145.49,27.62]
[1723989213463,15.6845,145.56,145.5,20.0]
[1723989214181,15.6845,145.56,145.49,20.0]
[1723989214387,15.6845,145.56,145.48,27.62]
[1723989214682,1.71773614,145.55,145.44,20.0]
[1723989214867,1.71773614,145.55,145.46,27.62]
[1723989215071,15.6845,145.56,145.46,27.62]
[1723989215072,1.71792943,145.54,145.46,27.62]
[1723989215264,1.71792943,145.54,145.43,13.79196958]
[1723989215794,0.12549,145.52,145.43,7.15556958]
[1723989215967,47.22061987,145.52,145.42,0.8664722]
[1723989217065,45.50196,145.52,145.42,0.8664722]
[1723989217767,1.84411203,145.52,145.42,0.8664722]
[1723989217970,1.71847877,145.51,145.42,0.8664722]
[1723989218167,1.84394017,145.52,145.43,27.62]
[1723989218487,22.72178,145.53,145.43,27.62]
[1723989218674,1.96955608,145.52,145.43,27.62]
[1723989218862,0.12549,145.51,145.43,27.62]
[1723989220171,0.25098,145.51,145.43,27.62]
[1723989220371,0.12549,145.51,145.43,27.62]
[1723989220876,0.12549,145.51,145.42,0.8664722]
[1723989221464,1.96962764,145.51,145.42,0.8664722]
[1723989221685,0.25098,145.5,145.42,0.8664722]
[1723989221891,0.12549,145.49,145.42,0.8664722]
[1723989222094,1.84435383,145.49,145.42,0.8664722]
[1723989222299,22.4708,145.48,145.42,0.8664722]
[1723989222613,1.71895137,145.47,145.42,0.8664722]
[1723989223566,22.4708,145.48,145.42,0.8664722]
[1723989227496,22.4708,145.48,145.42,28.4864722]
[1723989228509,22.4708,145.48,145.42,0.8664722]
[1723989229079,6.1679,145.48,145.44,22.26]
[1723989229908,16.3029,145.51,145.44,22.26]
[1723989230414,16.3029,145.51,145.42,23.1264722]
[1723989230980,0.12549,145.5,145.42,23.1264722]
[1723989231211,1.84417093,145.5,145.42,23.1264722]
[1723989231794,0.12549,145.5,145.42,23.1264722]
[1723989233300,0.12549,145.5,145.42,0.8664722]
[1723989234304,16.3029,145.51,145.42,0.8664722]
[1723989234609,0.12549,145.5,145.42,0.8664722]
[1723989234989,1.84413549,145.5,145.42,0.8664722]
[1723989235188,0.12549,145.5,145.42,0.8664722]
[1723989235400,16.3029,145.47,145.42,0.8664722]
[1723989235588,40.28205503,145.47,145.42,0.8664722]
[1723989235799,0.12549,145.46,145.42,0.8664722]
[1723989235994,1.84466131,145.46,145.42,0.8664722]
[1723989236179,0.25098,145.45,145.42,0.8664722]
[1723989236579,1.71934584,145.45,145.42,0.8664722]
[1723989236798,45.12549,145.46,145.42,0.8664722]
[1723989237195,0.12549,145.46,145.42,0.8664722]
[1723989237412,47.09571502,145.46,145.42,0.8664722]
[1723989239806,47.09571502,145.46,145.33,7.15295856]
[1723989239807,15.9452,145.43,145.33,7.15295856]
[1723989240012,45.50196,145.42,145.31,22.26]
[1723989240187,1.71983903,145.42,145.33,22.26]
[1723989240388,15.9452,145.43,145.33,22.26]
[1723989240791,15.9452,145.43,145.37,22.26]
[1723989241093,1.71906421,145.46,145.37,22.26]
[1723989241492,15.9452,145.47,145.39,22.26]
[1723989243293,1.71898456,145.49,145.39,38.0059]
[1723989243789,6.62379,145.47,145.29,6.4355]
[1723989244000,0.12549,145.43,145.29,6.4355]
[1723989244190,1.97067075,145.43,145.29,6.4355]
[1723989244395,0.25098,145.43,145.29,6.4355]
[1723989244596,6.4983,145.42,145.29,9.17457185]
[1723989244818,0.12549,145.4,145.28,275.0459]
[1723989245104,1.84557849,145.4,145.28,38.0059]
[1723989245297,15.4769,145.38,145.28,38.0059]
[1723989245606,1.84577654,145.37,145.28,38.0059]
[1723989245813,0.12549,145.37,145.28,38.0059]
[1723989246417,21.9752,145.42,145.28,1.37617512]
[1723989246712,21.9752,145.42,145.28,19.2097798]
[1723989246894,21.9752,145.42,145.29,17.83407061]
[1723989247091,6.4983,145.45,145.3,22.1814]
[1723989247320,6.4983,145.45,145.3,51.02248756]
[1723989247508,6.4983,145.45,145.32,0.12549]
[1723989247725,6.4983,145.45,145.35,27.87]
[1723989247896,6.4983,145.45,145.36,20.0]
[1723989248090,6.4983,145.45,145.35,27.87]
[1723989249216,6.4983,145.45,145.34,0.12549]
[1723989249217,46.84468041,145.44,145.28,6.29267034]
[1723989249420,46.84526063,145.44,145.3,27.87]
[1723989250097,0.12549,145.42,145.3,27.87]
[1723989250300,45.50196,145.42,145.3,27.87]
[1723989250499,47.22187471,145.42,145.3,27.87]
[1723989251217,0.12549,145.4,145.28,27.87]
[1723989251528,6.8781,145.39,145.28,27.87]
[1723989251720,1.84573328,145.38,145.28,27.87]
[1723989251892,2.2220212,145.4,145.28,27.87]
[1723989252094,45.50196,145.4,145.28,27.87]
[1723989252320,1.72007603,145.39,145.28,27.87]
[1723989252828,21.9752,145.41,145.31,27.87]
[1723989254025,1.84541411,145.4,145.31,27.87]
[1723989254228,1.84541411,145.4,145.29,27.87]
[1723989254400,1.84541411,145.4,145.3,20.0]
[1723989254600,1.71985521,145.39,145.3,20.0]
[1723989255295,0.12549,145.4,145.3,20.0]
[1723989257327,1.84534442,145.4,145.3,20.0]
[1723989257638,1.845346,145.4,145.3,20.0]
[1723989257806,1.71985323,145.39,145.3,20.0]
[1723989258904,1.84534432,145.4,145.3,20.0]
[1723989259619,29.71534432,145.4,145.3,20.0]
[1723989259923,15.3885,145.36,145.27,0.8664722]
[1723989260308,1.72035979,145.35,145.27,0.8664722]
[1723989260508,1.7203551,145.35,145.27,0.8664722]
[1723989260928,15.3885,145.36,145.27,0.8664722]
[1723989261331,15.3885,145.36,145.28,27.87]
[1723989261511,15.3885,145.36,145.3,27.87]
[1723989262704,7.87112122,145.35,145.27,0.8664722]
[1723989262912,6.0256,145.33,145.27,0.8664722]
[1723989263109,1.72084852,145.32,145.27,0.8664722]
[1723989263413,1.72083562,145.32,145.27,0.8664722]
[1723989263631,1.72067299,145.32,145.27,0.8664722]
[1723989263819,6.0256,145.33,145.27,0.8664722]
[1723989269526,6.0256,145.33,145.28,0.12549]
[1723989270213,6.0256,145.33,145.27,0.8664722]
[1723989275016,0.12549,145.32,145.27,0.8664722]
[1723989275522,7.74642044,145.33,145.27,0.8664722]
[1723989275723,12.9064,145.33,145.27,0.8664722]
[1723989275931,0.12549,145.32,145.27,0.8664722]
[1723989276242,45.37647,145.32,145.27,0.8664722]
[1723989276447,1.72095788,145.31,145.27,0.8664722]
[1723989276645,45.37647,145.32,145.27,0.8664722]
[1723989277032,23.42931906,145.31,145.2,27.89]
[1723989277344,7.00779,145.3,145.2,27.89]
[1723989277519,1.72121264,145.29,145.2,27.89]
[1723989278026,1.72121264,145.29,145.18,27.89]
[1723989278226,0.12549,145.3,145.18,27.89]
[1723989278432,1.84664156,145.3,145.18,27.89]
[1723989278733,1.84664156,145.3,145.19,0.12549]
[1723989279252,1.72115156,145.3,145.19,45.37647]
[1723989279548,1.72115156,145.3,145.19,0.25098]
[1723989279848,6.2456,145.28,145.16,47.89]
[1723989280240,1.72137532,145.27,145.16,47.89]
[1723989280546,1.72130131,145.26,145.16,47.89]
[1723989281449,1.72136153,145.27,145.16,47.89]
[1723989281630,6.2456,145.28,145.17,0.12549]
[1723989281831,1.72130212,145.27,145.17,45.37647]
[1723989282451,6.2456,145.28,145.17,45.37647]
[1723989282734,1.72123184,145.27,145.17,45.37647]
[1723989285340,6.2456,145.28,145.17,45.37647]
[1723989285549,6.2456,145.28,145.19,15.86799]
[1723989285760,6.2456,145.28,145.21,0.12549]
[1723989285959,6.2456,145.28,145.2,65.37647]
[1723989285960,7.96637425,145.28,145.2,47.89]
[1723989286160,6.2456,145.28,145.21,0.12549]
[1723989286457,6.2456,145.28,145.21,45.37647]
[1723989286635,6.2456,145.28,145.21,0.25098]
[1723989287445,6.2456,145.28,145.21,45.25098]
[1723989289251,6.2456,145.28,145.22,0.12549]
[1723989289729,6.2456,145.28,145.22,20.12549]
[1723989290435,6.2456,145.28,145.22,20.0]
[1723989291435,6.2456,145.32,145.25,0.12549]
[1723989291661,6.2456,145.32,145.25,45.25098]
[1723989291850,6.2456,145.32,145.25,0.12549]
[1723989292058,6.2456,145.32,145.25,20.12549]
[1723989293970,15.1581,145.33,145.28,27.89]
[1723989294173,6.2456,145.36,145.28,27.89]
[1723989294554,6.2456,145.36,145.3,27.89]
[1723989295571,6.2456,145.36,145.29,28.01549]
[1723989296467,6.2456,145.36,145.3,22.3]
[1723989300248,7.96548356,145.36,145.28,22.3]
[1723989300469,1.71988356,145.35,145.26,22.3]
[1723989300847,1.71988356,145.35,145.22,15.7726]
[1723989301048,1.71988356,145.35,145.25,22.3]
[1723989301949,6.2456,145.36,145.25,22.3]
[1723989302170,6.2456,145.36,145.27,22.3]
[1723989302465,7.9658765,145.36,145.27,22.3]
[1723989302970,6.2456,145.36,145.28,0.12549]
[1723989303154,6.2456,145.36,145.28,45.37647]
[1723989304372,6.2456,145.36,145.29,22.3]
[1723989304876,6.2456,145.36,145.28,45.37647]
[1723989304877,6.2456,145.36,145.31,22.3]
[1723989305076,15.1581,145.37,145.32,0.12549]
[1723989305255,15.1581,145.37,145.32,0.25098]
[1723989305454,6.2446,145.4,145.33,22.3]
[1723989306473,6.2446,145.4,145.35,22.3]
[1723989307183,22.1153,145.44,145.36,20.12549]
[1723989307470,22.1153,145.44,145.36,20.25098]
[1723989308191,21.6153,145.44,145.36,20.25098]
[1723989309883,21.6153,145.44,145.36,20.0]
[1723989310884,21.6153,145.44,145.37,22.42549]
[1723989311757,22.1153,145.47,145.37,22.42549]
[1723989312256,22.1153,145.47,145.38,0.12549]
[1723989315674,1.71890028,145.46,145.38,0.12549]
[1723989315863,22.1153,145.47,145.38,0.12549]
[1723989317454,22.1153,145.47,145.38,0.25098]
[1723989317673,22.1153,145.47,145.39,22.3]
[1723989318470,43.8888,145.51,145.39,22.3]
[1723989318677,0.12549,145.5,145.39,22.3]
[1723989318887,43.8888,145.51,145.4,0.12549]
[1723989319080,43.8888,145.51,145.4,0.25098]
[1723989319794,43.8888,145.51,145.4,36.59568]
[1723989320591,7.12726047,145.53,145.44,0.12549]
[1723989320784,21.5888,145.55,145.44,0.37647]
[1723989321470,21.5888,145.55,145.44,20.37647]
[1723989322092,1.71814836,145.54,145.44,20.37647]
[1723989322297,1.71814836,145.54,145.44,42.67647]
[1723989323194,21.5888,145.56,145.44,59.02117]
[1723989323375,1.71813877,145.55,145.44,59.02117]
[1723989323584,1.84362877,145.55,145.44,59.02117]
[1723989324078,0.12549,145.55,145.44,59.02117]
[1723989324568,21.5888,145.56,145.46,22.3]
[1723989324773,1.84361546,145.55,145.44,36.72117]
[1723989324975,1.7181493,145.54,145.44,59.02117]
[1723989325291,24.0181493,145.54,145.44,36.3447]
[1723989326368,22.3,145.52,145.44,16.3447]
[1723989326570,1.71865532,145.51,145.44,16.3447]
[1723989327302,1.71865532,145.51,145.41,6.3566]
[1723989327476,0.12549,145.5,145.41,6.3566]
[1723989329676,1.84423135,145.5,145.41,6.3566]
[1723989330597,0.12549,145.5,145.41,6.3566]
[1723989330985,1.84423777,145.5,145.41,6.3566]
[1723989331508,0.12549,145.5,145.41,6.3566]
[1723989333365,1.8442327,145.5,145.41,6.3566]
[1723989333796,0.12549,145.5,145.41,6.3566]
[1723989334029,0.12549,145.52,145.41,6.3566]
[1723989335407,22.3,145.54,145.41,6.3566]
[1723989335703,22.3,145.54,145.42,22.3]
[1723989336310,8.96920411,145.55,145.44,22.3]
[1723989336311,1.71844834,145.55,145.44,22.3]
[1723989336510,21.5888,145.56,145.45,15.58339]
[1723989337002,21.5888,145.56,145.45,15.4579]
[1723989337188,24.01812957,145.55,145.45,15.4579]
[1723989337504,22.3,145.55,145.45,15.4579]
[1723989338097,24.01836953,145.55,145.45,15.4579]
[1723989338303,46.71837102,145.54,145.45,15.4579]
[1723989338813,1.71837102,145.54,145.45,15.4579]
[1723989341304,45.0,145.55,145.45,15.4579]
[1723989341621,0.12549,145.54,145.45,15.4579]
[1723989342011,1.8438611,145.54,145.45,15.4579]
[1723989342388,24.1438611,145.54,145.45,15.4579]
[1723989343622,1.71856333,145.53,145.45,15.4579]
[1723989343917,22.42549,145.54,145.45,15.4579]
[1723989346513,9.02549,145.54,145.45,24.3579]
[1723989346716,25.59973272,145.56,145.47,8.9]
[1723989346912,8.9,145.56,145.47,15.391]
[1723989347095,8.9,145.58,145.47,15.391]
[1723989347730,6.4583,145.59,145.47,15.391]
[1723989347912,6.4583,145.59,145.49,8.9]
[1723989348089,8.9,145.58,145.49,8.9]
[1723989348404,6.4583,145.59,145.48,22.24]
[1723989348937,1.7179027,145.59,145.49,15.4579]
[1723989349321,1.71775555,145.6,145.49,15.4579]
[1723989350123,1.71775555,145.6,145.5,22.24]
[1723989350414,1.71757731,145.62,145.5,22.24]
[1723989350614,22.24,145.62,145.5,22.24]
[1723989351595,45.25098,145.61,145.5,22.24]
[1723989351795,0.25098,145.61,145.51,6.491]
[1723989352315,0.12549,145.61,145.51,6.491]
[1723989353509,0.12549,145.61,145.52,15.4579]
[1723989353707,45.0,145.62,145.52,15.4579]
[1723989353901,45.0,145.62,145.52,37.6979]
[1723989354094,22.24,145.63,145.52,37.6979]
[1723989354291,0.12549,145.62,145.52,37.6979]
[1723989354494,45.25098,145.63,145.52,37.6979]
[1723989354695,45.12549,145.63,145.52,37.6979]
[1723989355001,1.71732023,145.62,145.52,37.6979]
[1723989356122,22.24,145.6,145.52,15.4579]
[1723989356435,1.84323698,145.59,145.52,15.4579]
[1723989356624,46.84323698,145.59,145.52,15.4579]
[1723989357123,1.84323698,145.59,145.52,15.4579]
[1723989358308,0.12549,145.59,145.52,15.4579]
[1723989358717,45.0,145.6,145.52,15.4579]
[1723989358919,67.36549,145.61,145.52,15.4579]
[1723989359227,22.24,145.61,145.52,15.4579]
[1723989359405,6.8671,145.63,145.52,15.4579]
[1723989359602,1.71748892,145.62,145.52,15.4579]
[1723989360003,6.8673,145.62,145.52,15.4579]
[1723989360202,8.58500664,145.62,145.52,15.4579]
[1723989360502,0.12549,145.61,145.52,15.4579]
[1723989360695,45.37647,145.61,145.52,15.4579]
[1723989361235,0.12549,145.61,145.52,15.4579]
[1723989361517,45.37647,145.62,145.52,15.4579]
[1723989361732,67.61647,145.62,145.52,15.4579]
[1723989362220,45.37647,145.62,145.52,15.4579]
[1723989362928,47.09396538,145.62,145.52,15.4579]
[1723989363315,0.12549,145.62,145.52,15.4579]
[1723989363536,45.25098,145.62,145.52,15.4579]
[1723989363705,0.12549,145.62,145.52,15.4579]
[1723989364233,0.8664722,145.64,145.53,22.36549]
[1723989364400,0.8664722,145.64,145.54,15.9926]
[1723989364401,1.71714467,145.63,145.54,15.9926]
[1723989365520,0.8664722,145.64,145.54,15.9926]
[1723989365729,0.12549,145.63,145.54,15.9926]
[1723989366616,0.8664722,145.64,145.54,15.9926]
[1723989366824,2.58368704,145.64,145.54,15.9926]
[1723989370425,11.47368704,145.64,145.55,15.4169]
[1723989371139,2.58368704,145.64,145.55,6.5269]
[1723989371430,45.12549,145.63,145.55,6.5269]
[1723989371730,1.84283014,145.62,145.55,6.5269]
[1723989372140,8.89,145.63,145.55,15.4169]
[1723989372425,10.60717519,145.63,145.55,15.4169]
[1723989372733,10.60717519,145.63,145.55,6.5269]
[1723989373119,0.12549,145.62,145.55,6.5269]
[1723989373626,0.25098,145.62,145.55,6.5269]
[1723989374802,8.89,145.59,145.55,6.5269]
[1723989375029,1.84317119,145.58,145.55,6.5269]
[1723989375332,1.71772681,145.57,145.55,6.5269]
[1723989376348,10.60772681,145.57,145.51,6.6327]
[1723989376653,10.60772681,145.57,145.51,15.0749]
[1723989376654,8.89,145.54,145.51,15.0749]
[1723989376903,1.96927002,145.53,145.51,15.0749]
[1723989377143,46.96927002,145.53,145.51,15.0749]
[1723989378285,45.25098,145.53,145.51,15.0749]
[1723989378633,0.12549,145.53,145.51,15.0749]
[1723989378832,8.89,145.54,145.51,15.0749]
[1723989379437,45.25098,145.53,145.51,15.0749]
[1723989379646,0.12549,145.53,145.51,15.0749]
[1723989379827,45.25098,145.53,145.51,15.0749]
[1723989386539,45.25098,145.53,145.47,21.7076]
[1723989388151,10.60839235,145.52,145.47,21.7076]
[1723989388359,8.89,145.5,145.47,15.0749]
[1723989388525,1.84420868,145.49,145.47,15.0749]
[1723989388782,1.71874168,145.48,145.47,15.0749]
[1723989389638,1.84421274,145.49,145.47,15.0749]
[1723989391431,1.84420006,145.49,145.47,15.0749]
[1723989391622,0.12549,145.49,145.44,6.6327]
[1723989391843,47.09536544,145.49,145.44,6.6327]
[1723989392052,45.37647,145.49,145.44,6.6327]
[1723989393750,45.25098,145.49,145.44,6.6327]
[1723989393959,8.89,145.48,145.44,6.6327]
[1723989394136,46.97003817,145.47,145.43,15.0749]
[1723989394961,8.89,145.46,145.43,15.0749]
[1723989395255,1.71917541,145.45,145.43,15.0749]
[1723989395629,8.89,145.46,145.39,15.3666]
[1723989395834,1.84495856,145.45,145.39,15.3666]
[1723989396043,9.01549,145.44,145.39,15.3666]
[1723989396246,1.71953944,145.43,145.39,15.3666]
[1723989396431,1.71952706,145.42,145.39,15.3666]
[1723989396934,1.71957043,145.43,145.39,15.3666]
[1723989398556,1.71956866,145.42,145.39,15.3666]
[1723989398751,9.01549,145.44,145.39,15.3666]
[1723989400269,8.89,145.44,145.39,15.3666]
[1723989401442,8.89,145.46,145.39,15.3666]
[1723989401644,6.2865,145.49,145.39,24.2566]
[1723989402149,15.9702,145.5,145.39,24.2566]
[1723989403340,45.0,145.49,145.39,24.2566]
[1723989404857,0.12549,145.48,145.39,24.2566]
[1723989405966,1.84456384,145.48,145.39,24.2566]
[1723989407262,10.60907384,145.48,145.39,24.2566]
[1723989409455,8.89,145.48,145.39,24.2566]
[1723989409775,8.89,145.5,145.42,8.89]
[1723989410067,9.01549,145.5,145.42,8.89]
[1723989411945,1.71876014,145.49,145.42,8.89]
[1723989412256,9.01549,145.5,145.42,8.89]
[1723989412969,8.89,145.5,145.44,6.2621]
[1723989413177,1.71867945,145.49,145.44,6.2621]
[1723989413968,1.71867927,145.48,145.44,6.2621]
[1723989414347,8.89,145.5,145.44,6.2621]
[1723989417283,8.89,145.46,145.4,21.3728]
[1723989417575,47.09592765,145.45,145.4,21.3728]
[1723989417773,0.12549,145.44,145.4,15.1923]
[1723989418982,8.89,145.41,145.36,21.3728]
[1723989419154,1.71978128,145.4,145.36,21.3728]
[1723989419359,1.71978004,145.39,145.36,21.3728]
[1723989420175,8.89,145.41,145.36,21.3728]
[1723989421808,8.89,145.43,145.36,21.3728]
[1723989422254,1.71939631,145.42,145.36,21.3728]
[1723989422579,1.71947692,145.46,145.36,21.3728]
[1723989422876,1.71962278,145.45,145.36,21.3728]
[1723989423477,8.89,145.43,145.36,21.3728]
[1723989425079,8.89,145.43,145.36,30.2628]
[1723989425659,8.89,145.44,145.36,30.2628]
[1723989426274,1.71937165,145.43,145.36,30.2628]
[1723989426491,8.89,145.44,145.36,30.2628]
[1723989426661,1.71936896,145.43,145.36,30.2628]
[1723989426975,1.71949471,145.42,145.36,30.2628]
[1723989427182,1.71949471,145.42,145.36,21.3728]
[1723989427360,0.12549,145.46,145.36,21.3728]
[1723989427560,1.7196069,145.45,145.36,21.3728]
[1723989427762,0.37647,145.44,145.36,21.3728]
[1723989428080,0.12549,145.43,145.36,21.3728]
[1723989428257,8.89,145.41,145.36,21.3728]
[1723989430183,1.7197596,145.4,145.36,21.3728]
[1723989430481,1.71978278,145.39,145.36,21.3728]
[1723989430684,10.60978278,145.39,145.36,15.1923]
[1723989430889,1.71991472,145.38,145.32,21.3728]
[1723989431089,1.84540472,145.38,145.32,21.3728]
[1723989431791,0.12549,145.41,145.32,21.3728]
[1723989431955,8.89,145.4,145.32,21.3728]
[1723989432168,0.12549,145.39,145.32,21.3728]
[1723989433282,1.84559026,145.39,145.32,21.3728]
[1723989433469,1.84558946,145.39,145.32,21.3728]
[1723989433671,0.12549,145.39,145.32,21.3728]
[1723989433870,1.84558978,145.39,145.32,21.3728]
[1723989434069,1.84559235,145.39,145.32,21.3728]
[1723989434678,8.89,145.38,145.32,21.3728]
[1723989434870,0.12549,145.37,145.32,21.3728]
[1723989437077,0.12549,145.42,145.32,21.3728]
[1723989437392,1.19694918,145.43,145.32,21.3728]
[1723989437572,22.31,145.42,145.32,21.3728]
[1723989437884,22.31,145.4,145.32,21.3728]
[1723989438086,1.72009677,145.39,145.32,21.3728]
[1723989438785,0.25098,145.38,145.32,15.1923]
[1723989438967,24.28132915,145.38,145.32,15.1923]
[1723989439172,45.0,145.37,145.32,15.1923]
[1723989439361,0.37647,145.36,145.32,15.1923]
[1723989439567,22.43549,145.36,145.28,22.8069]
[1723989439772,45.12549,145.35,145.28,22.8069]
[1723989439970,0.12549,145.34,145.28,22.8069]
[1723989440703,0.25098,145.34,145.28,22.8069]
[1723989441385,22.56098,145.34,145.28,22.8069]
[1723989441574,45.12549,145.33,145.28,22.8069]
[1723989441773,0.12549,145.32,145.28,22.8069]
[1723989442591,0.12549,145.32,145.28,16.4686]
[1723989444998,0.12549,145.36,145.28,16.4686]